Workbook

Sheet Important Info
B2: INSTRUCTIONS FOR NEW FACILITIES CALCULATOR
B4: 1 | C4: Select a worksheet to complete. If your district has a new building, choose the "New Building" worksheet. If your district has an addition, choose the "Addition" worksheet that reflects the grade range of students in the addition.
B5: 2 | C5: Complete the heading area on the worksheet you selected. Select the claim year (First or Second) from the drop down.
B6: 3 | C6: Enter the enrollment and FTE for any new facilities to be claimed. Student's FTE entered in the New Facilities Calculator should be equal to their enrollment FTE. Example: special education preschool students count as .5 FTE, part-time students will be counted for less than 1.0 FTE, etc.
B7: 4 | C7: Follow specific instructions on the worksheet you use.
B8: 5 | C8: If you have multiple new buildings or additions, you can copy the worksheets for each new facility. If you use more than one worksheet, add the Total FTE field from each worksheet together to produce the FTE amount to be entered into the SO66.
B10: IMPORTANT INFORMATION
B12: • | C12: Orange highlighted cells indicate an area where the user should input data.
B13: • | C13: Blue highlighted cells indicate an area where the spreadsheet contains formulas and access is restricted.
B14: • | C14: New Facilities weighting (school facilities weighting) is calculated by taking the student FTE in a new facility times 25% (.25) rounded to one decimal place. This is reported directly on the SO66
B15: • | C15: Eligibility is dependent on the school district having a 25% Local Option Budget (LOB) and documentation showing the new facility was paid for from bonds authorized on or before 7/1/2015.
B16: • | C16: Generally, a remodeled facility does not meet the definition of "new" facility. However, under certain circumstances, a remodel has been allowed for funding. Districts should contact Craig Neuenswander, Director of School Finance, prior to claiming any remodeled facility - craign@ksde.org (785)296-3872.
B17: • | C17: Two year's funding is allowed.
B18: • | C18: Students counted in the district's enrollment who attend outside the building are NOT eligible for the new facilities weighting. This includes virtual students.
B19: • | C19: Cutting data will cause formula errors in protected cells so we have disabled the cut function in the worksheet. Instead, copy and paste, then go back to original cell and delete data.
B21: EXAMPLES - NEW FACILITIES CALCULATOR
B23: Example 1 | C23: New Building
B24: Example 2 | C24: Addition - Elementary School
B25: Example 3 | C25: Addition - Middle School, High School
A29: New Facilities Calculator Updated 8/1/22 Kansas leads the world in the success of each student.

Sheet New Building-All Grades
A2: New Facilities Calculator
A3: New Building
A6: School Year | L6: District
X8: First
A9: Claim Year | L9: Building | X9: Second
A14: 1. | B14: Enter the enrollment and FTE for all students enrolled and attending in a new building on September 20th.
A16: 2. | B16: Student's FTE entered into the calculator should be equal to their enrollment FTE. Example: special education preschool students count as .5 FTE, part-time students will be counted for less than 1.0 FTE.
A18: 3. | B18: The building must meet the requirements for the New Facilities Weighting. See Important Info worksheet.
E21: New Building
E22: Grade | F22: Enrollment | G22: FTE | H22: District Notes
E23: PreK with an IEP
E24: 4 Year Old At Risk
E25: Kindergarten
E26: 1st
E27: 2nd
E28: 3rd
E29: 4th
E30: 5th
E31: 6th
E32: 7th
E33: 8th
E34: 9th
E35: 10th
E36: 11th
E37: 12th
E38: Non-graded
E40: Total Enrollment | F40: =SUM(F23:F38) -> 0
E42: Total FTE - INPUT ON SO66 | G42: =SUM(G23:G38) -> 0
E44: Funded FTE | H44: =SUM($G$42*0.25) -> 0
A52: Notes
A72: New Facilities Calculator Updated 8/1/22 Kansas leads the world in the success of each student.

Sheet Addition-Elem
A2: New Facilities Calculator
A3: Addition - Elementary
A6: School Year | F6: Teacher | J6: District
Z8: First
A9: Claim Year | F9: Room Number/Grade | J9: Building | Z9: Second
C12: 1. | D12: This calculator should be completed for each room in an elementary school addition. Copy the worksheet for each room to be claimed.
C14: 2. | D14: For count week, enter the number of students who are physically in the room during each 5 minute time period so that students pulled out of the room during the day for other services are removed from the count.
C16: 3. | D16: Enter zeros for time periods when all students leave the room to attend other services (Ex: art, music, morning recess/afternoon recess, etc.). Don't leave these time periods blank.
C18: 4. | D18: Leave all cells blank for lunch time. Leave all cells blank for any recess time immediately before or immediately after lunch time.
C20: 5. | D20: Leave all time periods blank that occur outside of your school's scheduled hours.
C22: 6. | D22: Pre-K special ed students and 4 year old at risk students may be included in the New Facilities claim. These student's countable FTE is .5. Enter the total number of countable students divided by 2 into the appropriate time periods for these students.
C24: 7. | D24: The building must meet the requirements for the New Facilities Weighting. See Important Info worksheet.
D28: MONDAY | E28: TUESDAY | F28: WEDNESDAY | G28: THURSDAY | H28: FRIDAY | I28: District Comments
C29: 07:30:00
C30: 07:35:00
C31: 07:40:00
C32: 07:45:00
C33: 07:50:00
C34: 07:55:00
C35: 08:00:00
C36: 08:05:00
C37: 08:10:00
C38: 08:15:00
C39: 08:20:00
C40: 08:25:00
C41: 08:30:00
C42: 08:35:00
C43: 08:40:00
C44: 08:45:00
C45: 08:50:00
C46: 08:55:00
C47: 09:00:00
C48: 09:05:00
C49: 09:10:00
C50: 09:15:00
C51: 09:20:00
C52: 09:25:00
C53: 09:30:00
C54: 09:35:00
C55: 09:40:00
C56: 09:45:00
C57: 09:50:00
C58: 09:55:00
C59: 10:00:00
C60: 10:05:00
C61: 10:10:00
C62: 10:15:00
C63: 10:20:00
C64: 10:25:00
C65: 10:30:00
C66: 10:35:00
C67: 10:40:00
C68: 10:45:00
C69: 10:50:00
C70: 10:55:00
C71: 11:00:00
C72: 11:05:00
C73: 11:10:00
C74: 11:15:00
C75: 11:20:00
C76: 11:25:00
C77: 11:30:00
C78: 11:35:00
C79: 11:40:00
C80: 11:45:00
C81: 11:50:00
C82: 11:55:00
C83: 12:00:00
C84: 12:05:00
C85: 12:10:00
C86: 12:15:00
C87: 12:20:00
C88: 12:25:00
C89: 12:30:00
C90: 12:35:00
C91: 12:40:00
C92: 12:45:00
C93: 12:50:00
C94: 12:55:00
C95: 01:00:00
C96: 01:05:00
C97: 01:10:00
C98: 01:15:00
C99: 01:20:00
C100: 01:25:00
C101: 01:30:00
C102: 01:35:00
C103: 01:40:00
C104: 01:45:00
C105: 01:50:00
C106: 01:55:00
C107: 02:00:00
C108: 02:05:00
C109: 02:10:00
C110: 02:15:00
C111: 02:20:00
C112: 02:25:00
C113: 02:30:00
C114: 02:35:00
C115: 02:40:00
C116: 02:45:00
C117: 02:50:00
C118: 02:55:00
C119: 03:00:00
C120: 03:05:00
C121: 03:10:00
C122: 03:15:00
C123: 03:20:00
C124: 03:25:00
C125: 03:30:00
C126: 03:35:00
C127: 03:40:00
C128: 03:45:00
C129: 03:50:00
C130: 03:55:00
C131: 04:00:00
C132: 04:05:00
C133: 04:10:00
C134: 04:15:00
C135: 04:20:00
C136: 04:25:00
C137: 04:30:00
D139: =SUM(D35:D137) -> 0 | E139: =SUM(E35:E137) -> 0 | F139: =SUM(F35:F137) -> 0 | G139: =SUM(G35:G137) -> 0 | H139: =SUM(H35:H137) -> 0 | I139: =SUM(D139:H139) -> 0 | J139: Total Students in Time Periods
I141: =COUNT(D35:H137) -> 0 | J141: Count of Entries
I143: =IFERROR(ROUND(I139/I141,1),0) -> 0 | J143: Total FTE - ENTER ON SO66
I145: =SUM($I$143*0.25) -> 0 | J145: Funded FTE
A149: Notes
A168: New Facilities Calculator Updated 8/1/22 Kansas leads the world in the success of each student.

Sheet Addition-MS,HS
A2: New Facilities Calculator
A3: Addition - Middle School, High School
A7: School Year | F7: Teacher | J7: District
Z9: First
A10: Claim Year | F10: Room Number/Grade | J10: Building | Z10: Second
C15: 1. | D15: This calculator should be completed for each room in a middle school or high school addition. Copy the worksheet for each room to be claimed.
C17: 2. | D17: Based on the bell schedule of the building, select one of the three tables below to complete for each room: same schedule every day, every other day schedule, or different schedule every day
C19: 3. | D19: Complete the course names/numbers.
C21: 4. | D21: Complete the enrollments based on actual enrollments during count week. When there is no scheduled class in the room, leave the cell blank.
C23: 5. | D23: Complete the Number of Periods in Schedule field. This should be the total number of available periods in the day. Example: If there are 10 periods in a day and the room is only occupied by students for 5 periods, the number 10 should be entered.
C25: 6. | D25: The building must meet the requirements for the New Facilities Weighting. See Important Info worksheet.
D30: SAME SCHEDULE EVERY DAY
D32: Period | E32: Course Name/# | F32: Enrollments/FTE | G32: District Notes
D33: 1
D34: 2
D35: 3
D36: 4
D37: 5
D38: 6
D39: 7
D40: 8
D41: 9
D42: 10
E46: Number of Periods in Schedule
E48: Total Enrollment | F48: =SUM(F33:F44) -> 0
E50: Total FTE - INPUT ON SO66 | F50: =IFERROR(SUM($F$48/$F$46),0) -> 0
E52: Funded FTE | F52: =SUM($F$50*0.25) -> 0
D61: Every Other Day Schedule
E63: Day 1 | G63: Day 2
D64: Period | E64: Course Name/# | F64: Enrollments/FTE | G64: Course Number | H64: Enrollments/FTE | I64: District Notes
D65: 1
D66: 2
D67: 3
D68: 4
D69: 5
D70: 6
D71: 7
D72: 8
D73: 9
D74: 10
E78: Number of Periods in Schedule
E80: Total Enrollment | F80: =SUM(F65:F76) -> 0 | H80: =SUM(H65:H76) -> 0
E82: Total FTE - INPUT ON SO66 | F82: =IFERROR(SUM(($F$80+$H$80)/$F$78),0) -> 0
E84: Funded FTE | F84: =SUM($F$82*0.25) -> 0
C93: Different Schedule Every Day
E95: Enrollments
C96: Period | D96: Course Name/# | E96: M | F96: T | G96: W | H96: TH | I96: F | J96: District Notes
C97: 1
C99: 2
C101: 3
C103: 4
C105: 5
C107: 6
C109: 7
C111: 8
C113: 9
C115: 10
E120: Number of Periods in Schedule
D122: Total Enrollment | E122: =SUM(E97:E118) -> 0 | F122: =SUM(F97:F118) -> 0 | G122: =SUM(G97:G118) -> 0 | H122: =SUM(H97:H118) -> 0 | I122: =SUM(I97:I118) -> 0
E124: Total FTE - INPUT ON SO66 | F124: =IFERROR(SUM(($E$122+$F$122+$G$122+$H$122+$I$122)/$F$120),0) -> 0
E126: Funded FTE | F126: =SUM($F124*0.25) -> 0
A132: Notes
A147: New Facilities Calculator Updated 8/1/22 Kansas leads the world in the success of each student.

Sheet Example New Building-All Grades
A2: New Facilities Calculator
A3: New Building
A5: 19/20 | L5: USD 1001
A6: School Year | L6: District
A8: First | L8: Prairie Elementary | X8: First
A9: Claim Year | L9: Building | X9: Second
A14: 1. | B14: Enter the enrollment and FTE for all students enrolled and attending in a new building on September 20th.
A16: 2. | B16: Student's FTE entered into the calculator should be equal to their enrollment FTE. Example: special education preschool students count as .5 FTE, part-time students will be counted for less than 1.0 FTE.
A18: 3. | B18: The building must meet the requirements for the New Facilities Weighting. See Important Info worksheet.
E21: New Building
E22: Grade | F22: Enrollment | G22: FTE | H22: District Notes
E23: PreK with an IEP | F23: 11 | G23: 5.5
E24: 4 Year Old At Risk | F24: 27 | G24: 13.5
E25: Kindergarten | F25: 52 | G25: 52
E26: 1st | F26: 63 | G26: 63
E27: 2nd | F27: 58 | G27: 58
E28: 3rd | F28: 61 | G28: 60.2 | H28: One part-time student (home schooled)
E29: 4th | F29: 65 | G29: 65
E30: 5th | F30: 57 | G30: 56.3 | H30: One part-time student (home schooled)
E31: 6th
E32: 7th
E33: 8th
E34: 9th
E35: 10th
E36: 11th
E37: 12th
E38: Non-graded
E40: Total Enrollment | F40: =SUM(F23:F38) -> 394
E42: Total FTE (Input on SO66) | G42: =SUM(G23:G38) -> 373.5
E44: Funded FTE | H44: =SUM($G$42*0.25) -> 93.375
A52: Notes
A74: New Facilities Calculator Updated 6/18/20 Kansas leads the world in the success of each student.

Sheet Example Addition-Elem
A2: New Facilities Calculator
A3: Addition - Elementary
A5: 19/20 | F5: Smith, Terry | J5: USD 1001
A6: School Year | F6: Teacher | J6: District
A8: Second | F8: 101/2nd | J8: Sunflower Elementary | Z8: First
A9: Claim Year | F9: Room Number/Grade | J9: Building | Z9: Second
C12: 1. | D12: This calculator should be completed for each room in an elementary school addition. Copy the worksheet for each room to be claimed.
C14: 2. | D14: Enter the number of students who are physically in the room during each 5 minute time period so that students pulled out of the room during the day for other services are removed from the count.
C16: 3. | D16: Enter zeros for time periods when all students leave the room to attend other services (Ex: art, music, morning recess/afternoon recess, etc.). Don't leave these time periods blank.
C18: 4. | D18: Leave all cells blank for lunch time. Leave all cells blank for any recess time immediately before or immediately after lunch time.
C20: 5. | D20: Leave all time periods blank that occur outside of your school's scheduled hours.
C22: 6. | D22: Pre-K special ed students and 4 year old at risk students may be included in the New Facilities claim. These student's countable FTE is .5. Enter the total number of countable students divided by 2 into the appropriate time periods.
C24: 7. | D24: The building must meet the requirements for the New Facilities Weighting. See Important Info worksheet.
D28: MONDAY | E28: TUESDAY | F28: WEDNESDAY | G28: THURSDAY | H28: FRIDAY | I28: District Comments
C29: 07:30:00
C30: 07:35:00
C31: 07:40:00
C32: 07:45:00
C33: 07:50:00
C34: 07:55:00
C35: 08:00:00 | D35: 29 | E35: 29 | F35: 29 | G35: 29 | H35: 29 | I35: School begins at 8:00am
C36: 08:05:00 | D36: 28 | E36: 28 | F36: 28 | G36: 28 | H36: 28 | I36: 1 student to sped services
C37: 08:10:00 | D37: 28 | E37: 28 | F37: 28 | G37: 28 | H37: 28
C38: 08:15:00 | D38: 28 | E38: 28 | F38: 28 | G38: 28 | H38: 28
C39: 08:20:00 | D39: 28 | E39: 28 | F39: 28 | G39: 28 | H39: 28
C40: 08:25:00 | D40: 28 | E40: 28 | F40: 28 | G40: 28 | H40: 28
C41: 08:30:00 | D41: 28 | E41: 28 | F41: 28 | G41: 28 | H41: 28
C42: 08:35:00 | D42: 28 | E42: 28 | F42: 28 | G42: 28 | H42: 28
C43: 08:40:00 | D43: 28 | E43: 28 | F43: 28 | G43: 28 | H43: 28
C44: 08:45:00 | D44: 28 | E44: 28 | F44: 28 | G44: 28 | H44: 28
C45: 08:50:00 | D45: 29 | E45: 29 | F45: 29 | G45: 29 | H45: 29 | I45: 1 student returns from sped services
C46: 08:55:00 | D46: 29 | E46: 29 | F46: 29 | G46: 29 | H46: 29
C47: 09:00:00 | D47: 29 | E47: 29 | F47: 29 | G47: 29 | H47: 29
C48: 09:05:00 | D48: 29 | E48: 29 | F48: 29 | G48: 29 | H48: 29
C49: 09:10:00 | D49: 29 | E49: 29 | F49: 29 | G49: 29 | H49: 29
C50: 09:15:00 | D50: 29 | E50: 29 | F50: 29 | G50: 29 | H50: 29
C51: 09:20:00 | D51: 29 | E51: 29 | F51: 29 | G51: 29 | H51: 29
C52: 09:25:00 | D52: 29 | E52: 29 | F52: 29 | G52: 29 | H52: 29
C53: 09:30:00 | D53: 29 | E53: 29 | F53: 29 | G53: 29 | H53: 29
C54: 09:35:00 | D54: 0 | E54: 0 | F54: 0 | G54: 0 | H54: 0 | I54: Art/Music rotation
C55: 09:40:00 | D55: 0 | E55: 0 | F55: 0 | G55: 0 | H55: 0 | I55: Art/Music rotation
C56: 09:45:00 | D56: 0 | E56: 0 | F56: 0 | G56: 0 | H56: 0 | I56: Art/Music rotation
C57: 09:50:00 | D57: 0 | E57: 0 | F57: 0 | G57: 0 | H57: 0 | I57: Art/Music rotation
C58: 09:55:00 | D58: 0 | E58: 0 | F58: 0 | G58: 0 | H58: 0 | I58: Art/Music rotation
C59: 10:00:00 | D59: 0 | E59: 0 | F59: 0 | G59: 0 | H59: 0 | I59: Art/Music rotation
C60: 10:05:00 | D60: 0 | E60: 0 | F60: 0 | G60: 0 | H60: 0 | I60: Art/Music rotation
C61: 10:10:00 | D61: 0 | E61: 0 | F61: 0 | G61: 0 | H61: 0 | I61: Art/Music rotation
C62: 10:15:00 | D62: 0 | E62: 0 | F62: 0 | G62: 0 | H62: 0 | I62: Art/Music rotation
C63: 10:20:00 | D63: 0 | E63: 0 | F63: 0 | G63: 0 | H63: 0 | I63: Art/Music rotation
C64: 10:25:00 | D64: 0 | E64: 0 | F64: 0 | G64: 0 | H64: 0 | I64: Art/Music rotation
C65: 10:30:00 | D65: 29 | E65: 29 | F65: 29 | G65: 29 | H65: 29
C66: 10:35:00 | D66: 29 | E66: 29 | F66: 29 | G66: 29 | H66: 29
C67: 10:40:00 | D67: 29 | E67: 29 | F67: 29 | G67: 29 | H67: 29
C68: 10:45:00 | D68: 29 | E68: 29 | F68: 29 | G68: 29 | H68: 29
C69: 10:50:00 | D69: 29 | E69: 29 | F69: 29 | G69: 29 | H69: 29
C70: 10:55:00 | D70: 29 | E70: 29 | F70: 29 | G70: 29 | H70: 29
C71: 11:00:00 | D71: 29 | E71: 29 | F71: 29 | G71: 29 | H71: 29
C72: 11:05:00 | D72: 29 | E72: 29 | F72: 29 | G72: 29 | H72: 29
C73: 11:10:00 | D73: 26 | E73: 26 | F73: 26 | G73: 26 | H73: 26 | I73: 3 students to ESL services
C74: 11:15:00 | D74: 26 | E74: 26 | F74: 26 | G74: 26 | H74: 26
C75: 11:20:00 | D75: 26 | E75: 26 | F75: 26 | G75: 26 | H75: 26
C76: 11:25:00 | D76: 26 | E76: 26 | F76: 26 | G76: 26 | H76: 26
C77: 11:30:00 | D77: 26 | E77: 26 | F77: 26 | G77: 26 | H77: 26
C78: 11:35:00 | D78: 26 | E78: 26 | F78: 26 | G78: 26 | H78: 26
C79: 11:40:00 | D79: 26 | E79: 26 | F79: 26 | G79: 26 | H79: 26
C80: 11:45:00 | D80: 26 | E80: 26 | F80: 26 | G80: 26 | H80: 26
C81: 11:50:00 | D81: 26 | E81: 26 | F81: 26 | G81: 26 | H81: 26
C82: 11:55:00 | D82: 27 | E82: 27 | F82: 27 | G82: 27 | H82: 27 | I82: 2 st return from ESL services, 1 st to sped serv
C83: 12:00:00 | D83: 27 | E83: 27 | F83: 27 | G83: 27 | H83: 27
C84: 12:05:00 | D84: 27 | E84: 27 | F84: 27 | G84: 27 | H84: 27
C85: 12:10:00 | D85: 27 | E85: 27 | F85: 27 | G85: 27 | H85: 27
C86: 12:15:00 | D86: 27 | E86: 27 | F86: 27 | G86: 27 | H86: 27
C87: 12:20:00 | D87: 27 | E87: 27 | F87: 27 | G87: 27 | H87: 27
C88: 12:25:00 | D88: 27 | E88: 27 | F88: 27 | G88: 27 | H88: 27
C89: 12:30:00 | D89: 27 | E89: 27 | F89: 27 | G89: 27 | H89: 27
C90: 12:35:00 | D90: 27 | E90: 27 | F90: 27 | G90: 27 | H90: 27
C91: 12:40:00 | I91: Lunch
C92: 12:45:00 | I92: Lunch
C93: 12:50:00 | I93: Lunch
C94: 12:55:00 | I94: Lunch
C95: 01:00:00 | I95: Lunch
C96: 01:05:00 | I96: Lunch
C97: 01:10:00 | I97: Recess immediately after lunch
C98: 01:15:00 | I98: Recess immediately after lunch
C99: 01:20:00 | I99: Recess immediately after lunch
C100: 01:25:00 | D100: 29 | E100: 29 | F100: 29 | G100: 29 | H100: 29
C101: 01:30:00 | D101: 29 | E101: 29 | F101: 29 | G101: 29 | H101: 29
C102: 01:35:00 | D102: 29 | E102: 29 | F102: 29 | G102: 29 | H102: 29
C103: 01:40:00 | D103: 29 | E103: 29 | F103: 29 | G103: 29 | H103: 29
C104: 01:45:00 | D104: 29 | E104: 29 | F104: 29 | G104: 29 | H104: 29
C105: 01:50:00 | D105: 29 | E105: 29 | F105: 29 | G105: 29 | H105: 29
C106: 01:55:00 | D106: 29 | E106: 29 | F106: 29 | G106: 29 | H106: 29
C107: 02:00:00 | D107: 29 | E107: 29 | F107: 29 | G107: 29 | H107: 29
C108: 02:05:00 | D108: 29 | E108: 29 | F108: 29 | G108: 29 | H108: 29
C109: 02:10:00 | D109: 29 | E109: 29 | F109: 29 | G109: 29 | H109: 29
C110: 02:15:00 | D110: 29 | E110: 29 | F110: 29 | G110: 29 | H110: 29
C111: 02:20:00 | D111: 29 | E111: 29 | F111: 29 | G111: 29 | H111: 29
C112: 02:25:00 | D112: 29 | E112: 29 | F112: 29 | G112: 29 | H112: 29
C113: 02:30:00 | D113: 29 | E113: 29 | F113: 29 | G113: 29 | H113: 29
C114: 02:35:00 | D114: 29 | E114: 29 | F114: 29 | G114: 29 | H114: 29
C115: 02:40:00 | D115: 29 | E115: 29 | F115: 29 | G115: 29 | H115: 29
C116: 02:45:00 | D116: 29 | E116: 29 | F116: 29 | G116: 29 | H116: 29
C117: 02:50:00 | D117: 29 | E117: 29 | F117: 29 | G117: 29 | H117: 29
C118: 02:55:00 | D118: 29 | E118: 29 | F118: 29 | G118: 29 | H118: 29
C119: 03:00:00 | D119: 29 | E119: 29 | F119: 29 | G119: 29 | H119: 29
C120: 03:05:00 | D120: 29 | E120: 29 | F120: 29 | G120: 29 | H120: 29
C121: 03:10:00 | D121: 29 | E121: 29 | F121: 29 | G121: 29 | H121: 29
C122: 03:15:00 | D122: 29 | E122: 29 | F122: 29 | G122: 29 | H122: 29
C123: 03:20:00 | D123: 29 | E123: 29 | F123: 29 | G123: 29 | H123: 29
C124: 03:25:00 | D124: 29 | E124: 29 | F124: 29 | G124: 29 | H124: 29
C125: 03:30:00 | D125: 29 | E125: 29 | F125: 29 | G125: 29 | H125: 29
C126: 03:35:00 | D126: 29 | E126: 29 | F126: 29 | G126: 29 | H126: 29 | I126: School dismissed at 3:40
C127: 03:40:00
C128: 03:45:00
C129: 03:50:00
C130: 03:55:00
C131: 04:00:00
C132: 04:05:00
C133: 04:10:00
C134: 04:15:00
C135: 04:20:00
C136: 04:25:00
C137: 04:30:00
D139: =SUM(D35:D137) -> 2034 | E139: =SUM(E35:E137) -> 2034 | F139: =SUM(F35:F137) -> 2034 | G139: =SUM(G35:G137) -> 2034 | H139: =SUM(H35:H137) -> 2034 | I139: =SUM(D139:H139) -> 10170 | J139: Total Students in Time Periods
I141: =COUNT(D35:H137) -> 415 | J141: Count of Entries
I143: =IFERROR(ROUND(I139/I141,1),0) -> 24.5 | J143: Total FTE - ENTER ON SO66
I145: =SUM($I$143*0.25) -> 6.125 | J145: Funded FTE
A149: Notes
A168: New Facilities Calculator Updated 6/18/20 Kansas leads the world in the success of each student.

Sheet Example Addition-MS,HS
A2: New Facilities Calculator
A3: Addition - Middle School, High School
A6: 19/20 | F6: Strong, Susan | J6: USD 1001
A7: School Year | F7: Teacher | J7: District
A9: First | F9: 106 | J9: Sunflower High School | Z9: First
A10: Claim Year | F10: Room Number/Grade | J10: Building | Z10: Second
C15: 1. | D15: This calculator should be completed for each room in a middle school or high school addition. Copy the worksheet for each room to be claimed.
C17: 2. | D17: Based on the bell schedule of the building, select one of the three tables below to complete for each room: same schedule every day, every other day schedule, or different schedule every day
C19: 3. | D19: Complete the course names/numbers.
C21: 4. | D21: Complete the enrollments based on actual enrollments during count week. When there is no scheduled class in the room, leave the cell blank.
C23: 5. | D23: Complete the Number of Periods in Schedule field. This should be the total number of available periods in the day. Example: If there are 10 periods in a day and the room is only occupied by students for 5 periods, the number 10 should be entered.
C25: 6. | D25: The building must meet the requirements for the New Facilities Weighting. See Important Info worksheet.
D30: SAME SCHEDULE EVERY DAY
D32: Period | E32: Course Name/# | F32: Enrollments/FTE | G32: District Notes
D33: 1 | E33: 1121-001 | F33: 26
D34: 2 | E34: 8561-001 | F34: 28
D35: 3 | G35: Planning Period
D36: 4 | E36: 8731-001 | F36: 10
D37: 5 | E37: 9025-010 | F37: 15
D38: 6 | E38: 8623-004 | F38: 16
D39: 7 | E39: 8721-001 | F39: 17
D40: 8 | E40: 9133-008 | F40: 12 | G40: School Dismissed
D41: 9
D42: 10
E46: Number of Periods in Schedule | F46: 10
E48: Total Enrollment | F48: =SUM(F33:F44) -> 124
E50: Total FTE - INPUT ON SO66 | F50: =IFERROR(SUM($F$48/$F$46),0) -> 12.4
E52: Funded FTE | F52: =SUM($F$50*0.25) -> 3.1
D61: Every Other Day Schedule
E63: Purple Day | G63: Silver Day
D64: Period | E64: Course Name/# | F64: Enrollments/FTE | G64: Course Number | H64: Enrollments/FTE | I64: District Notes
D65: 1 | E65: SC3001-11T | F65: 26 | G65: SC3001-21C | H65: 25
D66: 2 | E66: SC3001-12T2 | F66: 28 | G66: SC3001-22C | H66: 64
D67: 3 | E67: SC3001-13T3 | F67: 32 | G67: SC3001-23C | H67: 32
D68: 4 | E68: SC3001-14T2 | F68: 10 | G68: SC3001-24C | H68: 12
D69: 5 | E69: SC3001-15T | F69: 15 | G69: SC3001-25C | H69: 64
D70: 6 | E70: SC3001-16T3 | F70: 16 | G70: SC3001-26C | H70: 15
D71: 7 | I71: Planning Period
D72: 8 | E72: SS2001-18C | F72: 12 | G72: SC3001-26C | H72: 14
D73: 9
D74: 10
E78: Number of Periods in Schedule | F78: 8
E80: Total Enrollment | F80: =SUM(F65:F76) -> 139 | H80: =SUM(H65:H76) -> 226
E82: Total FTE - INPUT ON SO66 | F82: =IFERROR(SUM(($F$80+$H$80)/$F$78),0) -> 45.625
E84: Funded FTE | F84: =SUM($F$82*0.25) -> 11.40625
C93: Different Schedule Every Day
E95: Enrollments
C96: Period | D96: Course Name/# | E96: M | F96: T | G96: W | H96: TH | I96: F | J96: District Notes
C97: 1 | D97: MA1071-11L | E97: 17 | G97: 17 | I97: 17
C99: 2 | D99: MA3001-13L | E99: 18 | G99: 18 | I99: 18
C101: 3 | D101: MA3001-15L | E101: 21 | G101: 21 | I101: 21
C103: 4 | D103: MA1001-23S | E103: 22 | G103: 22 | I103: 22
C105: 5 | D105: MA1024-7K | E105: 28 | G105: 28 | I105: 28
C107: 6 | D107: MA3001-12L2 | F107: 18 | H107: 18 | I107: 18
C109: 7 | D109: MA1001-23S | F109: 20 | H109: 20 | I109: 20
C111: 8 | D111: MA3001-12L2 | F111: 23 | H111: 23 | I111: 23
C113: 9 | D113: MA1081-14L | F113: 26 | H113: 26 | I113: 26
C115: 10 | D115: MA1071-11L | F115: 28 | H115: 28 | I115: 28
E120: Number of Periods in Schedule | F120: 10
D122: Total Enrollment | E122: =SUM(E97:E118) -> 106 | F122: =SUM(F97:F118) -> 115 | G122: =SUM(G97:G118) -> 106 | H122: =SUM(H97:H118) -> 115 | I122: =SUM(I97:I118) -> 221
E124: Total FTE - INPUT ON SO66 | F124: =IFERROR(SUM(($E$122+$F$122+$G$122+$H$122+$I$122)/$F$120),0) -> 66.3
E126: Funded FTE | F126: =SUM($F124*0.25) -> 16.575
A132: Notes
A147: New Facilities Calculator Updated 6/18/20 Kansas leads the world in the success of each student.

Sheet Formulas (hidden)
A1: Cell | B1: F8
A2: Heading | B2: none
A3: Formula | B3: =COUNTIF(C7,"="&"Lunch")
A4: Translation | B4: Places a 1 in cell if the word Lunch is in C7 (Type of Time, row above).
A6: Cell | B6: G8
A7: Heading | B7: Mins
A8: Formula | B8: =IF(OR(C8="Lunch",C8="Recess",AND(F8=1,C8="Passing")), 0, IF(D8>E8,(E8+0.5)-D8,E8-D8))
A9: Translation | B9: If there is a 1 in F8 and the word Passing in C8 (Type), don't count the time. If the words Lunch or Recess are in C8 (Type), don't count the time. If not, then count the time. If beg time is greater than end time, then (end time + .5) minus beg time If not, then end time minus beg time.
A11: Cell | B11: G33
A12: Heading | B12: Total Mins
A13: Formula | B13: =SUM(G8:G32)
A14: Translation | B14: Adds up all time
A16: Cell | B16: AC8
A17: Heading | B17: Daily Average
A18: Formula | B18: =ROUND(((G8+L8+Q8+V8+AA8+G57+L57+Q57+V57+AA57)/10)*1440,0)/1440
A19: Translation | B19: Adds up all times in first rows of both tables (the formula sees decimals) and divides by 10 for average which is rounded. Excel stores time as a decimal portion of a day. Dividing the totaled decimals by 1440 converts to actual minutes. 1440 is the number of minutes in a day.
A21: Cell | B21: AC33
A22: Heading | B22: total of daily average column
A23: Formula | B23: =ROUND((SUM(G33:AA33)+SUM(G82:AA82))/10*1440,0)/1440
A24: Translation | B24: Adds up total minutes row for both columns, divides by 10 to average, converts to actual minutes, then rounds.
A26: Cell | B26: AD8
A27: Heading | B27: Contact Minutes
A28: Formula | B28: =IF(OR(ISNUMBER(SEARCH("*Period*",C8)),ISNUMBER(SEARCH("*Period*",H8)),ISNUMBER(SEARCH("*Period*",M8)),ISNUMBER(SEARCH("*Period*",R8)),ISNUMBER(SEARCH("*Period*",W8))),AC8,0)
A29: Translation | B29: Looks for the word period in Type columns of both tables and returns a zero if it finds it. If it doesn't find the word period, then returns the result in AC8.
A31: Cell | B31: AD33
A32: Heading | B32: total of Contact Minutes column
A33: Formula | B33: =SUM(AD8:AD30)
A34: Translation | B34: adds up all contact minutes
A36: Cell | B36: AE8
A37: Heading | B37: P-test
A38: Formula | B38: =IF(OR(ISNUMBER(SEARCH("*Period*",C8)),ISNUMBER(SEARCH("*Period*",H8)),ISNUMBER(SEARCH("*Period*",M8)),ISNUMBER(SEARCH("*Period*",R8)),ISNUMBER(SEARCH("*Period*",W8))),INDIRECT("R"&TEXT(MIN(IF(COUNTIF(C8:W8,C8:W8)=MAX(COUNTIF(C8:W8,C8:W8)),ROW(C8:W8)*1000+COLUMN(C8:W8))),"0\C000"),0),"")
A39: Translation | B39: Looks for the word Period in Type columns of both tables. Not sure what happens after that.
A41: Cell | B41: AF8
A42: Heading | B42: Period
A43: Formula | B43: =IF(AE8=0, AE57,AE8)
A44: Translation
A46: Cell | B46: AG8
A47: Heading | B47: Seq
A48: Formula | B48: =IF(AH8=0,"",(MAX(AG$7:AG7)+1)*1)
A49: Translation
A51: Cell | B51: AH8
A52: Heading | B52: P Num
A53: Formula | B53: =IF(AF8="",0,REPLACE(AF8,SEARCH(" ",AF8,1),7,""))
A54: Translation
A56: Cell | B56: AI8
A57: Heading | B57: Contact
A58: Formula | B58: =AD8
A59: Translation
A61: Cell | B61: AJ8
A62: Heading | B62: Seminar
A63: Formula | B63: =IF(OR(ISNUMBER(SEARCH("*Seminar*",C8)),ISNUMBER(SEARCH("*Seminar*",H8)),ISNUMBER(SEARCH("*Seminar*",M8)),ISNUMBER(SEARCH("*Seminar*",R8)),ISNUMBER(SEARCH("*Seminar*",W8))),AC8,0)
A64: Translation
A66: Cell | B66: AJ33
A67: Heading | B67: toal of seminar minutes column
A68: Formula | B68: =SUM(AJ8:AJ30)
A69: Translation
A71: Cell | B71: L36
A72: Heading | B72: Total Minutes per Day
A73: Formula | B73: =ROUND((SUM(G82:AA82)+SUM(G33:AA33))/10*1440,0)/1440
A74: Translation

Sheet Sheet2 (hidden)
D2: 1G | E2: =IFERROR(INDEX($D$2:$D$20,SMALL(INDEX(NOT(ISBLANK($D$2:$D$20))*ROW($D$2:$D$20),0),COUNTBLANK($D$2:$D$20))),"") -> 
B3: =IFERROR(INDEX($A$2:$A$40,SMALL(IF(LEN($A$2:$A$40)>0,ROW($A$2:$A$40)-ROW($E$1)),ROW(1:1)),1),"") -> 0 | E3: 1G
B4: =IFERROR(INDEX($A$2:$A$40,SMALL(IF(LEN($A$2:$A$40)>0,ROW($A$2:$A$40)-ROW($E$1)),ROW(2:2)),1),"") ->  | D4: 1R
E5: 1R
D6: 2G
E7: 2G
D8: 2R
E9: 2R
D12: 3G
E13: 3G
D14: 3R
E15: 3R
D16: 4G
E17: 4G
D18: 4R
E19: 4R
E20: =IFERROR(INDEX($D$2:$D$20,SMALL(INDEX(NOT(ISBLANK($D$2:$D$20))*ROW($D$2:$D$20),0),COUNTBLANK($D$2:$D$20))),"") -> 
E21: =IFERROR(INDEX($D$2:$D$20,SMALL(INDEX(NOT(ISBLANK($D$2:$D$20))*ROW($D$2:$D$20),0),COUNTBLANK($D$2:$D$20))),"") -> 
E22: =IFERROR(INDEX($D$2:$D$20,SMALL(INDEX(NOT(ISBLANK($D$2:$D$20))*ROW($D$2:$D$20),0),COUNTBLANK($D$2:$D$20))),"") -> 
E23: =IFERROR(INDEX($D$2:$D$20,SMALL(INDEX(NOT(ISBLANK($D$2:$D$20))*ROW($D$2:$D$20),0),COUNTBLANK($D$2:$D$20))),"") -> 
E24: =IFERROR(INDEX($D$2:$D$20,SMALL(INDEX(NOT(ISBLANK($D$2:$D$20))*ROW($D$2:$D$20),0),COUNTBLANK($D$2:$D$20))),"") -> 
